[Event "46th GRE-chT Premier 2018"]
[Site "Rio Achaia"]
[Date "2018.07.11"]
[Round "2"]
[White "Gioutsos, Vasileios"]
[Black "Goutoufas, Christos"]
[Result "1-0"]
[ECO "B30"]
[WhiteElo "1339"]
[BlackElo "1434"]
[Annotator "NA"]
[PlyCount "81"]
[EventDate "2018.07.10"]
[EventType "team-tourn"]
[EventCountry "GRE"]
[SourceTitle "playchess.com"]
[Source "ChessBase"]
[SourceQuality "1"]
[TimeControl "40/5400+30:1800+30"]

1. e4 {[%emt 0:00:00]} c5 {[%emt 0:02:29]} 2. Nf3 {[%emt 0:00:00]} Nc6 {[%emt 0:00:08]} 3. c3 {[%emt 0:00:00]} d5 {[%emt 0:00:07]} 4. exd5 {[%emt 0:00:19]} Qxd5 {[%emt 0:00:07]} 5. d4 {[%emt 0:00:25]} e6 {[%emt 0:01:15]} 6. Be2 {[%emt 0:00:34]} Nf6 {[%emt 0:00:26]} 7. O-O {[%emt 0:01:15]} Be7 {[%emt 0:00:51]} 8. h3 {[%emt 0:01:55]} O-O {[%emt 0:00:39]} 9. Be3 {[%emt 0:00:58]} b6 {[%emt 0:05:23]} 10. dxc5 {[%emt 0:08:08]} bxc5 {[%emt 0:01:15]} 11. Nbd2 {[%emt 0:03:26]} Bb7 {[%emt 0:06:04]} 12. Nb3 {[%emt 0:04:12]} Ne4 {[%emt 0:11:41]} 13. Qc2 {[%emt 0:13:42]} c4 {[%emt 0:14:21]} 14. Nbd2 {[%emt 0:02:02]} Nxd2 {[%emt 0:00:33]} 15. Qxd2 {[%emt 0:00:25]} Rfd8 {[%emt 0:09:35]} 16. Qc2 {[%emt 0:25:13]} Na5 {[%emt 0:11:29]} 17. Rfd1 {[%emt 0:05:09]} Qc6 {[%emt 0:01:43]} 18. Rxd8+ {[%emt 0:06:27]} Bxd8 {[%emt 0:02:11]} 19. b4 {[%emt 0:05:19]} cxb3 {[%emt 0:00:34]} 20. axb3 {[%emt 0:00:10]} Bb6 {[%emt 0:03:11]} 21. Bxb6 {[%emt 0:01:14]} Qxb6 {[%emt 0:02:45]} 22. b4 {[%emt 0:01:30]} Nc6 {[%emt 0:00:22]} 23. Ng5 {[%emt 0:01:05]} g6 {[%emt 0:01:25]} 24. Qe4 {[%emt 0:03:37]} h6 {[%emt 0:02:59]} 25. Nf3 {[%emt 0:00:15]} a5 {[%emt 0:02:15]} 26. b5 {[%emt 0:03:03]} Ne7 {[%emt 0:02:40]} 27. Qf4 {[%emt 0:00:49]} Kg7 {[%emt 0:06:07]} 28. Ne5 {[%emt 0:03:05]} Nf5 {[%emt 0:03:14]} 29. g4 {[%emt 0:02:56]} g5 {[%emt 0:00:16]} 30. Nd7 {[%emt 0:02:36]} Qd6 {[%emt 0:01:32]} 31. Qxd6 {[%emt 0:00:58]} Nxd6 {[%emt 0:00:10]} 32. Nb6 {[%emt 0:00:19]} Ra7 {[%emt 0:02:51]} 33. c4 {[%emt 0:00:37]} Nc8 {[%emt 0:01:41]} 34. Nxc8 {[%emt 0:01:01]} Bxc8 {[%emt 0:00:07]} 35. b6 {[%emt 0:00:07]} Ra8 {[%emt 0:03:38]} 36. c5 {[%emt 0:00:51]} Bb7 {[%emt 0:00:39]} 37. Bb5 {[%emt 0:00:12]} Rc8 {[%emt 0:00:58]} 38. Rc1 {[%emt 0:00:03]} Bc6 {[%emt 0:00:43]} 39. Bxc6 {[%emt 0:00:07]} Kf6 {[%emt 0:00:28]} 40. b7 {[%emt 0:00:00]} Rb8 {[%emt 0:00:00]} 41. Bf3 {[%emt 0:00:35]} 1-0

[Event "46th GRE-chT Premier 2018"]
[Site "Rio Achaia"]
[Date "2018.07.11"]
[Round "2"]
[White "Fotiadis, Alexandros"]
[Black "Soukarie, Zorz"]
[Result "0-1"]
[ECO "E21"]
[WhiteElo "1336"]
[BlackElo "1295"]
[Annotator "NA"]
[PlyCount "58"]
[EventDate "2018.07.10"]
[EventType "team-tourn"]
[EventCountry "GRE"]
[SourceTitle "playchess.com"]
[Source "ChessBase"]
[SourceQuality "1"]
[TimeControl "40/5400+30:1800+30"]

1. d4 {[%emt 0:00:00]} Nf6 {[%emt 0:00:00]} 2. c4 {[%emt 0:00:00]} e6 {[%emt 0:00:00]} 3. Nc3 {[%emt 0:01:50]} Bb4 {[%emt 0:00:03]} 4. Nf3 {[%emt 0:00:12]} Bxc3+ {[%emt 0:00:18]} 5. bxc3 {[%emt 0:00:07]} c5 {[%emt 0:00:10]} 6. Qc2 {[%emt 0:07:18]} d6 {[%emt 0:01:33]} 7. e4 {[%emt 0:00:57]} Nc6 {[%emt 0:00:58]} 8. Bd3 {[%emt 0:02:30]} e5 {[%emt 0:00:31]} 9. d5 {[%emt 0:01:25]} Ne7 {[%emt 0:00:07]} 10. h3 {[%emt 0:07:00]} Ng6 {[%emt 0:01:10]} 11. g4 {[%emt 0:04:53]} h6 {[%emt 0:03:44]} 12. Be3 {[%emt 0:06:59]} Bd7 {[%emt 0:03:46]} 13. Qd2 {[%emt 0:06:59]} a6 {[%emt 0:06:25]} 14. g5 {[%emt 0:02:27]} hxg5 {[%emt 0:00:38]} 15. Nxg5 {[%emt 0:02:23]} Nh5 {[%emt 0:03:02]} 16. Be2 {[%emt 0:24:39]} Nhf4 {[%emt 0:00:49]} 17. Bxf4 {[%emt 0:02:47]} Nxf4 {[%emt 0:00:09]} 18. h4 {[%emt 0:01:11]} Qxg5 {[%emt 0:07:19]} 19. hxg5 {[%emt 0:00:25]} Rxh1+ {[%emt 0:00:04]} 20. Bf1 {[%emt 0:00:50]} Bh3 {[%emt 0:00:05]} 21. O-O-O {[%emt 0:00:37]} Rxf1 {[%emt 0:00:45]} 22. Rxf1 {[%emt 0:00:05]} Bxf1 {[%emt 0:00:04]} 23. Kd1 {[%emt 0:01:13]} Bxc4 {[%emt 0:00:29]} 24. Qb2 {[%emt 0:00:17]} b5 {[%emt 0:00:19]} 25. Kd2 {[%emt 0:01:34]} g6 {[%emt 0:01:04]} 26. Qa1 {[%emt 0:00:25]} Ke7 {[%emt 0:02:21]} 27. Qh1 {[%emt 0:00:25]} Bxa2 {[%emt 0:01:35]} 28. Qh7 {[%emt 0:00:14]} Nh5 {[%emt 0:00:18]} 29. Qh6 {[%emt 0:00:19]} Bc4 0-1

[Event "46th GRE-chT Premier 2018"]
[Site "Rio Achaia"]
[Date "2018.07.11"]
[Round "2"]
[White "Tsouli, Rafailia"]
[Black "Mastrakouli, Evagelia"]
[Result "1/2-1/2"]
[ECO "E63"]
[WhiteElo "1327"]
[BlackElo "1779"]
[Annotator "NA"]
[PlyCount "151"]
[EventDate "2018.07.10"]
[EventType "team-tourn"]
[EventCountry "GRE"]
[SourceTitle "playchess.com"]
[Source "ChessBase"]
[SourceQuality "1"]
[TimeControl "40/5400+30:1800+30"]

1. d4 {[%emt 0:00:00]} Nf6 {[%emt 0:00:48]} 2. c4 {[%emt 0:00:00]} g6 {[%emt 0:00:11]} 3. Nf3 {[%emt 0:00:11]} Bg7 {[%emt 0:00:14]} 4. Nc3 {[%emt 0:00:35]} d6 {[%emt 0:00:26]} 5. g3 {[%emt 0:02:07]} O-O {[%emt 0:01:03]} 6. Bg2 {[%emt 0:00:47]} Nc6 {[%emt 0:00:21]} 7. O-O {[%emt 0:01:22]} a6 {[%emt 0:00:21]} 8. e4 {[%emt 0:04:38]} Bg4 {[%emt 0:01:57]} 9. Be3 {[%emt 0:03:43]} Re8 {[%emt 0:05:08]} 10. Qd2 {[%emt 0:03:37]} e5 {[%emt 0:05:49]} 11. d5 {[%emt 0:02:28]} Bxf3 {[%emt 0:00:41]} 12. dxc6 {[%emt 0:11:25]} Bxg2 {[%emt 0:00:24]} 13. cxb7 {[%emt 0:00:22]} Bxf1 {[%emt 0:00:25]} 14. bxa8=Q {[%emt 0:00:58]} Qxa8 {[%emt 0:00:33]} 15. Rxf1 {[%emt 0:02:09]} Nxe4 {[%emt 0:02:45]} 16. Nxe4 {[%emt 0:01:33]} Qxe4 {[%emt 0:00:09]} 17. b3 {[%emt 0:02:41]} Qa8 {[%emt 0:43:41]} 18. Rd1 {[%emt 0:16:54]} Rd8 {[%emt 0:02:52]} 19. Qa5 {[%emt 0:03:55]} c6 {[%emt 0:03:28]} 20. Bb6 {[%emt 0:06:33]} Rd7 {[%emt 0:00:32]} 21. Bc5 {[%emt 0:05:24]} d5 {[%emt 0:01:54]} 22. cxd5 {[%emt 0:00:39]} cxd5 {[%emt 0:01:21]} 23. Qa4 {[%emt 0:02:49]} Qb7 {[%emt 0:01:45]} 24. Ba3 {[%emt 0:04:05]} Qb5 {[%emt 0:06:09]} 25. Qxb5 {[%emt 0:03:45]} axb5 {[%emt 0:00:06]} 26. Kf1 {[%emt 0:00:43]} d4 {[%emt 0:04:15]} 27. Rc1 {[%emt 0:05:11]} f5 {[%emt 0:02:57]} 28. Bb4 {[%emt 0:01:45]} d3 {[%emt 0:02:25]} 29. Rd1 {[%emt 0:01:26]} e4 {[%emt 0:00:20]} 30. Bd2 {[%emt 0:02:01]} Ra7 {[%emt 0:02:35]} 31. Rc1 {[%emt 0:03:20]} h6 {[%emt 0:01:55]} 32. a4 {[%emt 0:03:18]} bxa4 {[%emt 0:01:37]} 33. bxa4 {[%emt 0:00:05]} Kh7 {[%emt 0:02:07]} 34. a5 {[%emt 0:01:15]} g5 {[%emt 0:01:43]} 35. Rc6 {[%emt 0:01:13]} Rf7 {[%emt 0:02:26]} 36. a6 {[%emt 0:02:23]} f4 {[%emt 0:01:08]} 37. gxf4 {[%emt 0:01:08]} gxf4 {[%emt 0:00:01]} 38. Ke1 {[%emt 0:01:25]} Bd4 {[%emt 0:01:35]} 39. Re6 {[%emt 0:00:42]} Ra7 {[%emt 0:00:44]} 40. Bxf4 {[%emt 0:00:00]} Rg7 {[%emt 0:00:00]} 41. Rxe4 {[%emt 0:02:33]} Bc3+ {[%emt 0:04:34]} 42. Kf1 {[%emt 0:00:13]} d2 {[%emt 0:03:50]} 43. Ke2 {[%emt 0:00:48]} Rd7 {[%emt 0:00:41]} 44. Kd1 {[%emt 0:00:55]} Bd4 {[%emt 0:18:54]} 45. Be3 {[%emt 0:02:30]} Bxe3 {[%emt 0:01:05]} 46. Rxe3 {[%emt 0:00:49]} Rf7 {[%emt 0:00:39]} 47. Kxd2 {[%emt 0:00:21]} Rxf2+ {[%emt 0:00:25]} 48. Re2 {[%emt 0:00:07]} Rf7 {[%emt 0:00:49]} 49. Kc3 {[%emt 0:02:04]} Rf6 {[%emt 0:02:20]} 50. a7 {[%emt 0:01:22]} Ra6 {[%emt 0:00:21]} 51. Re7+ {[%emt 0:00:09]} Kg6 {[%emt 0:00:05]} 52. Re6+ {[%emt 0:00:47]} Rxe6 {[%emt 0:00:16]} 53. a8=Q {[%emt 0:00:10]} Rf6 {[%emt 0:00:30]} 54. Kd4 {[%emt 0:01:22]} Kg5 {[%emt 0:00:26]} 55. Qd8 {[%emt 0:01:47]} Kf5 {[%emt 0:00:43]} 56. Qd5+ {[%emt 0:00:25]} Kg4 {[%emt 0:00:17]} 57. Qg2+ {[%emt 0:00:38]} Kh5 {[%emt 0:00:33]} 58. Ke5 {[%emt 0:01:08]} Rf8 {[%emt 0:01:37]} 59. Ke6 {[%emt 0:01:59]} Rf4 {[%emt 0:00:25]} 60. Qh3+ {[%emt 0:02:19]} Kg5 {[%emt 0:00:10]} 61. Qg3+ {[%emt 0:00:50]} Rg4 {[%emt 0:00:23]} 62. h4+ {[%emt 0:02:43]} Kh5 {[%emt 0:00:11]} 63. Qh3 {[%emt 0:00:30]} Rg6+ {[%emt 0:01:18]} 64. Ke5 {[%emt 0:01:26]} Rg8 {[%emt 0:01:12]} 65. Qf5+ {[%emt 0:04:55]} Kxh4 {[%emt 0:00:08]} 66. Qf4+ {[%emt 0:00:05]} Rg4 {[%emt 0:01:00]} 67. Qxh6+ {[%emt 0:00:08]} Kg3 {[%emt 0:00:03]} 68. Qe3+ {[%emt 0:00:24]} Kh4 {[%emt 0:00:25]} 69. Kf5 {[%emt 0:01:08]} Rg8 {[%emt 0:00:50]} 70. Qf4+ {[%emt 0:04:38]} Kh3 {[%emt 0:00:07]} 71. Qf3+ {[%emt 0:01:10]} Kh2 {[%emt 0:00:02]} 72. Qf2+ {[%emt 0:02:01]} Kh3 {[%emt 0:00:38]} 73. Qf3+ {[%emt 0:02:19]} Kh2 {[%emt 0:00:04]} 74. Qf2+ {[%emt 0:00:46]} Kh3 {[%emt 0:00:06]} 75. Qf3+ {[%emt 0:00:09]} Kh2 76. Ke5 1/2-1/2

[Event "46th GRE-chT Premier 2018"]
[Site "Rio Achaia"]
[Date "2018.07.11"]
[Round "2"]
[White "Chatzigavriil, Georgios"]
[Black "Vlachos, Georgios"]
[Result "0-1"]
[ECO "B33"]
[WhiteElo "1318"]
[BlackElo "1334"]
[Annotator "NA"]
[PlyCount "118"]
[EventDate "2018.07.10"]
[EventType "team-tourn"]
[EventCountry "GRE"]
[SourceTitle "playchess.com"]
[Source "ChessBase"]
[SourceQuality "1"]
[TimeControl "40/5400+30:1800+30"]

1. e4 {[%emt 0:00:00]} c5 {[%emt 0:00:00]} 2. Nf3 {[%emt 0:00:00]} Nc6 {[%emt 0:00:05]} 3. d4 {[%emt 0:00:00]} cxd4 {[%emt 0:00:10]} 4. Nxd4 {[%emt 0:00:07]} Nf6 {[%emt 0:00:08]} 5. f3 {[%emt 0:00:05]} e5 {[%emt 0:01:52]} 6. Nf5 {[%emt 0:01:58]} d5 {[%emt 0:00:34]} 7. Ng3 {[%emt 0:06:03]} Be6 {[%emt 0:03:40]} 8. Bb5 {[%emt 0:00:54]} Qa5+ {[%emt 0:01:03]} 9. Nc3 {[%emt 0:00:18]} d4 {[%emt 0:00:12]} 10. Bxc6+ {[%emt 0:02:46]} bxc6 {[%emt 0:00:22]} 11. Bd2 {[%emt 0:00:17]} dxc3 {[%emt 0:01:06]} 12. Bxc3 Bb4 13. Ne2 {[%emt 0:04:06]} Rd8 {[%emt 0:03:14]} 14. Qc1 {[%emt 0:00:19]} Bc4 {[%emt 0:06:45]} 15. Bxb4 {[%emt 0:00:29]} Qxb4+ {[%emt 0:00:05]} 16. Nc3 {[%emt 0:00:15]} O-O {[%emt 0:00:36]} 17. a3 {[%emt 0:00:34]} Qa5 {[%emt 0:00:57]} 18. Qe3 {[%emt 0:02:36]} Qb6 {[%emt 0:01:28]} 19. Qxb6 {[%emt 0:01:16]} axb6 {[%emt 0:00:05]} 20. b3 {[%emt 0:00:16]} Be6 {[%emt 0:00:44]} 21. O-O {[%emt 0:02:51]} Rd2 {[%emt 0:00:57]} 22. Rac1 {[%emt 0:00:54]} Rfd8 {[%emt 0:00:45]} 23. Na4 {[%emt 0:02:19]} b5 {[%emt 0:02:58]} 24. Nc5 {[%emt 0:00:19]} Re2 {[%emt 0:01:46]} 25. Rfd1 {[%emt 0:04:02]} Rdd2 {[%emt 0:00:45]} 26. Rxd2 {[%emt 0:03:01]} Rxd2 {[%emt 0:00:05]} 27. Nd3 {[%emt 0:00:36]} Nd7 {[%emt 0:02:04]} 28. b4 {[%emt 0:00:21]} Bc4 {[%emt 0:00:32]} 29. Nb2 {[%emt 0:00:36]} Nb6 {[%emt 0:03:13]} 30. Rd1 {[%emt 0:02:25]} Rxd1+ {[%emt 0:00:21]} 31. Nxd1 {[%emt 0:00:05]} Na4 {[%emt 0:00:29]} 32. Kf2 {[%emt 0:00:10]} f6 {[%emt 0:00:39]} 33. Ke3 {[%emt 0:00:16]} Kf7 {[%emt 0:00:19]} 34. g4 {[%emt 0:00:16]} g5 {[%emt 0:01:06]} 35. h3 {[%emt 0:00:25]} Bf1 {[%emt 0:02:31]} 36. Kf2 {[%emt 0:00:25]} Bc4 {[%emt 0:01:25]} 37. Ke3 {[%emt 0:00:16]} Be6 {[%emt 0:01:22]} 38. c3 {[%emt 0:01:25]} Nb6 {[%emt 0:00:31]} 39. Kd2 {[%emt 0:00:55]} Nc4+ {[%emt 0:00:19]} 40. Kc2 {[%emt 0:00:48]} Nxa3+ {[%emt 0:00:19]} 41. Kb2 {[%emt 0:00:48]} Nc4+ {[%emt 0:00:30]} 42. Kc2 {[%emt 0:02:21]} Kg6 {[%emt 0:01:56]} 43. Kd3 {[%emt 0:01:08]} Nb6 {[%emt 0:01:30]} 44. Ne3 {[%emt 0:02:10]} Nc4 {[%emt 0:02:30]} 45. Nd1 {[%emt 0:02:27]} Kf7 {[%emt 0:01:52]} 46. Ke2 {[%emt 0:00:59]} Ke7 {[%emt 0:00:59]} 47. Kd3 {[%emt 0:01:33]} Nd6 {[%emt 0:00:52]} 48. Ne3 {[%emt 0:00:26]} Nf7 {[%emt 0:01:51]} 49. Ng2 {[%emt 0:00:45]} Nh8 {[%emt 0:00:31]} 50. Ne1 {[%emt 0:00:13]} Ng6 {[%emt 0:00:25]} 51. Ng2 {[%emt 0:00:26]} Nf4+ {[%emt 0:00:13]} 52. Nxf4 {[%emt 0:00:17]} gxf4 {[%emt 0:00:14]} 53. h4 {[%emt 0:00:37]} Kf7 {[%emt 0:00:34]} 54. Ke2 {[%emt 0:00:21]} Kg6 {[%emt 0:00:14]} 55. g5 {[%emt 0:02:23]} fxg5 {[%emt 0:00:17]} 56. hxg5 {[%emt 0:00:06]} Kxg5 {[%emt 0:00:20]} 57. Kf2 {[%emt 0:00:06]} Kh4 {[%emt 0:00:16]} 58. Kg2 {[%emt 0:00:16]} h5 {[%emt 0:00:29]} 59. Kh2 {[%emt 0:00:51]} Bh3 {[%emt 0:00:09]} 0-1

[Event "46th GRE-chT Premier 2018"]
[Site "Rio Achaia"]
[Date "2018.07.11"]
[Round "2"]
[White "Kartsidima, Angeliki"]
[Black "Basinas, Konstantinos"]
[Result "0-1"]
[ECO "A45"]
[WhiteElo "1317"]
[BlackElo "1383"]
[Annotator "NA"]
[PlyCount "56"]
[EventDate "2018.07.10"]
[EventType "team-tourn"]
[EventCountry "GRE"]
[SourceTitle "playchess.com"]
[Source "ChessBase"]
[SourceQuality "1"]
[TimeControl "40/5400+30:1800+30"]

1. d4 {[%emt 0:02:24]} Nf6 {[%emt 0:00:00]} 2. Nd2 {[%emt 0:01:29]} d5 {[%emt 0:00:32]} 3. Ngf3 {[%emt 0:01:37]} g6 4. e3 {[%emt 0:01:30]} Bg7 {[%emt 0:00:33]} 5. Bd3 {[%emt 0:01:57]} O-O {[%emt 0:00:16]} 6. O-O {[%emt 0:00:22]} c5 {[%emt 0:01:30]} 7. c4 {[%emt 0:05:15]} Nbd7 {[%emt 0:04:42]} 8. b3 {[%emt 0:03:11]} b6 {[%emt 0:00:32]} 9. Rb1 {[%emt 0:02:32]} Bb7 {[%emt 0:01:17]} 10. a3 {[%emt 0:02:45]} Qc7 {[%emt 0:20:15]} 11. b4 {[%emt 0:04:20]} Ne4 {[%emt 0:09:51]} 12. Qc2 {[%emt 0:06:21]} Nxd2 {[%emt 0:02:35]} 13. Bxd2 {[%emt 0:04:03]} cxd4 {[%emt 0:00:41]} 14. Nxd4 {[%emt 0:03:03]} Rac8 {[%emt 0:04:19]} 15. Rfc1 {[%emt 0:06:03]} Ne5 {[%emt 0:03:14]} 16. Nb5 {[%emt 0:03:13]} Qb8 {[%emt 0:01:54]} 17. Qb3 {[%emt 0:03:54]} dxc4 {[%emt 0:09:38]} 18. Bxc4 {[%emt 0:01:52]} Qa8 {[%emt 0:01:18]} 19. Bf1 {[%emt 0:01:09]} Bd5 {[%emt 0:20:21]} 20. Qd1 {[%emt 0:04:33]} Nc4 {[%emt 0:04:12]} 21. Bxc4 {[%emt 0:01:42]} Bxc4 {[%emt 0:00:21]} 22. Nd4 {[%emt 0:01:02]} Rfd8 {[%emt 0:01:31]} 23. Qg4 {[%emt 0:02:28]} e5 {[%emt 0:02:58]} 24. Nb3 {[%emt 0:02:04]} f5 {[%emt 0:03:21]} 25. Qd1 {[%emt 0:02:29]} Qd5 {[%emt 0:01:16]} 26. Rb2 {[%emt 0:05:56]} Bxb3 {[%emt 0:01:49]} 27. Rxb3 {[%emt 0:05:14]} Rxc1 {[%emt 0:00:47]} 28. Qxc1 {[%emt 0:00:12]} Qxb3 {[%emt 0:00:34]} 0-1

[Event "46th GRE-chT Premier 2018"]
[Site "Rio Achaia"]
[Date "2018.07.11"]
[Round "2"]
[White "Apostolidou, Eleni"]
[Black "Lagogianni, Niki Vasiliki"]
[Result "1/2-1/2"]
[ECO "B18"]
[WhiteElo "1290"]
[BlackElo "1123"]
[Annotator "NA"]
[PlyCount "72"]
[EventDate "2018.07.10"]
[EventType "team-tourn"]
[EventCountry "GRE"]
[SourceTitle "playchess.com"]
[Source "ChessBase"]
[SourceQuality "1"]
[TimeControl "40/5400+30:1800+30"]

1. e4 {[%emt 0:00:00]} c6 {[%emt 0:00:00]} 2. d4 {[%emt 0:00:00]} d5 {[%emt 0:00:00]} 3. Nc3 {[%emt 0:00:00]} dxe4 {[%emt 0:00:00]} 4. Nxe4 {[%emt 0:00:00]} Bf5 {[%emt 0:00:00]} 5. Ng3 {[%emt 0:00:07]} Bg6 {[%emt 0:00:01]} 6. Nf3 {[%emt 0:01:26]} Nd7 {[%emt 0:00:19]} 7. Bd3 {[%emt 0:03:16]} Bxd3 {[%emt 0:00:22]} 8. Qxd3 {[%emt 0:00:05]} Ngf6 {[%emt 0:01:02]} 9. Bd2 {[%emt 0:04:25]} e6 {[%emt 0:03:26]} 10. O-O {[%emt 0:03:54]} Be7 {[%emt 0:00:26]} 11. Rfe1 {[%emt 0:02:25]} O-O {[%emt 0:01:17]} 12. Qb3 {[%emt 0:05:16]} Qb6 {[%emt 0:02:02]} 13. Qxb6 {[%emt 0:04:30]} Nxb6 {[%emt 0:00:59]} 14. Bg5 {[%emt 0:03:37]} Nbd7 {[%emt 0:02:53]} 15. Ne4 {[%emt 0:04:33]} h6 {[%emt 0:01:24]} 16. Nxf6+ {[%emt 0:02:38]} Nxf6 {[%emt 0:00:47]} 17. Bd2 {[%emt 0:02:02]} Nd5 {[%emt 0:04:44]} 18. c3 {[%emt 0:02:48]} Bd6 {[%emt 0:07:25]} 19. Ne5 {[%emt 0:04:35]} Rfd8 {[%emt 0:03:47]} 20. Nc4 {[%emt 0:10:54]} Nb6 {[%emt 0:01:21]} 21. Nxb6 {[%emt 0:02:33]} axb6 {[%emt 0:00:08]} 22. a3 {[%emt 0:02:12]} b5 {[%emt 0:02:23]} 23. h3 {[%emt 0:04:22]} Ra6 {[%emt 0:02:12]} 24. Rab1 {[%emt 0:05:01]} Bc7 {[%emt 0:01:44]} 25. Be3 {[%emt 0:03:21]} Rd5 {[%emt 0:02:32]} 26. Red1 {[%emt 0:04:57]} Ra8 {[%emt 0:02:56]} 27. Rd2 {[%emt 0:03:45]} Rad8 {[%emt 0:05:11]} 28. Rbd1 {[%emt 0:02:00]} Bb6 {[%emt 0:16:40]} 29. Kf1 {[%emt 0:03:08]} Kf8 {[%emt 0:02:48]} 30. Ke2 {[%emt 0:03:09]} Ke7 {[%emt 0:03:58]} 31. Kf3 {[%emt 0:05:45]} Ba7 {[%emt 0:03:20]} 32. Ke2 {[%emt 0:01:55]} Bb6 {[%emt 0:00:10]} 33. Kf3 {[%emt 0:01:07]} Ba7 {[%emt 0:00:15]} 34. Ke2 {[%emt 0:01:09]} Bb6 {[%emt 0:01:36]} 35. Kf3 {[%emt 0:01:10]} Ba7 {[%emt 0:00:41]} 36. Ke2 {[%emt 0:00:10]} Bb6 {[%emt 0:01:10]} 1/2-1/2

[Event "46th GRE-chT Premier 2018"]
[Site "Rio Achaia"]
[Date "2018.07.11"]
[Round "2"]
[White "Giannoulaki, Ermofili"]
[Black "Patriki, Alexandra"]
[Result "1-0"]
[ECO "E68"]
[WhiteElo "1286"]
[BlackElo "1355"]
[Annotator "NA"]
[PlyCount "67"]
[EventDate "2018.07.10"]
[EventType "team-tourn"]
[EventCountry "GRE"]
[SourceTitle "playchess.com"]
[Source "ChessBase"]
[SourceQuality "1"]
[TimeControl "40/5400+30:1800+30"]

1. d4 {[%emt 0:00:00]} Nf6 {[%emt 0:00:00]} 2. Nf3 {[%emt 0:00:00]} g6 {[%emt 0:00:00]} 3. g3 {[%emt 0:00:31]} Bg7 {[%emt 0:00:09]} 4. Bg2 {[%emt 0:00:10]} d6 {[%emt 0:00:17]} 5. O-O {[%emt 0:00:28]} O-O {[%emt 0:00:58]} 6. c4 {[%emt 0:01:27]} Nbd7 {[%emt 0:01:39]} 7. Nc3 {[%emt 0:00:45]} e5 {[%emt 0:08:23]} 8. e4 {[%emt 0:02:42]} exd4 {[%emt 0:05:55]} 9. Nxd4 {[%emt 0:00:19]} Nc5 {[%emt 0:06:47]} 10. Re1 {[%emt 0:03:00]} Rb8 {[%emt 0:09:53]} 11. Bf4 {[%emt 0:05:03]} a6 {[%emt 0:09:06]} 12. Qc2 {[%emt 0:05:08]} Ne6 {[%emt 0:13:17]} 13. Nxe6 {[%emt 0:01:30]} Bxe6 {[%emt 0:00:13]} 14. Nd5 {[%emt 0:01:38]} Nh5 {[%emt 0:01:29]} 15. Bd2 {[%emt 0:02:08]} f5 {[%emt 0:02:40]} 16. Bc3 {[%emt 0:06:24]} Bxc3 {[%emt 0:02:41]} 17. Qxc3 {[%emt 0:00:15]} f4 {[%emt 0:07:07]} 18. Rad1 {[%emt 0:07:49]} c6 {[%emt 0:11:29]} 19. Nb4 {[%emt 0:04:27]} Qc7 {[%emt 0:02:16]} 20. e5 {[%emt 0:03:30]} fxg3 {[%emt 0:03:45]} 21. hxg3 {[%emt 0:00:43]} Qb6 {[%emt 0:01:51]} 22. Rd2 {[%emt 0:02:51]} a5 {[%emt 0:03:22]} 23. Nc2 {[%emt 0:01:13]} dxe5 {[%emt 0:02:56]} 24. Rxe5 {[%emt 0:01:35]} c5 {[%emt 0:02:14]} 25. Bd5 {[%emt 0:03:04]} Bxd5 {[%emt 0:00:39]} 26. cxd5 {[%emt 0:01:59]} Rbd8 {[%emt 0:00:38]} 27. Re6 {[%emt 0:01:06]} Qc7 {[%emt 0:01:25]} 28. d6 {[%emt 0:01:12]} Qb6 {[%emt 0:02:00]} 29. g4 {[%emt 0:04:00]} Nf6 {[%emt 0:00:40]} 30. Rxf6 {[%emt 0:00:35]} Rfe8 {[%emt 0:00:30]} 31. d7 {[%emt 0:01:28]} Re6 {[%emt 0:00:33]} 32. Qc4 {[%emt 0:00:49]} Rf8 {[%emt 0:00:32]} 33. Qxe6+ {[%emt 0:00:34]} Qxe6 {[%emt 0:00:12]} 34. Rxe6 {[%emt 0:00:05]} 1-0

[Event "46th GRE-chT Premier 2018"]
[Site "Rio Achaia"]
[Date "2018.07.11"]
[Round "2"]
[White "Pilalis, Ernestos"]
[Black "Violakis, Anastasios"]
[Result "0-1"]
[ECO "A48"]
[WhiteElo "1278"]
[BlackElo "1255"]
[Annotator "NA"]
[PlyCount "72"]
[EventDate "2018.07.10"]
[EventType "team-tourn"]
[EventCountry "GRE"]
[SourceTitle "playchess.com"]
[Source "ChessBase"]
[SourceQuality "1"]
[TimeControl "40/5400+30:1800+30"]

1. Nf3 {[%emt 0:00:00]} Nf6 {[%emt 0:00:00]} 2. d4 {[%emt 0:00:00]} g6 {[%emt 0:00:00]} 3. e3 {[%emt 0:00:00]} Bg7 {[%emt 0:00:00]} 4. Be2 {[%emt 0:00:34]} O-O {[%emt 0:00:07]} 5. O-O {[%emt 0:00:11]} d6 {[%emt 0:00:10]} 6. b3 {[%emt 0:01:32]} Nbd7 {[%emt 0:00:23]} 7. Bb2 {[%emt 0:01:56]} c5 {[%emt 0:00:25]} 8. c4 {[%emt 0:03:42]} Rb8 {[%emt 0:03:48]} 9. Nc3 {[%emt 0:03:24]} a6 {[%emt 0:01:37]} 10. a4 {[%emt 0:02:21]} b6 {[%emt 0:01:05]} 11. Qd3 {[%emt 0:06:35]} Bb7 {[%emt 0:01:00]} 12. d5 {[%emt 0:03:38]} Ng4 {[%emt 0:01:02]} 13. Qc2 {[%emt 0:07:00]} Nge5 {[%emt 0:03:43]} 14. Nxe5 Nxe5 {[%emt 0:01:27]} 15. f4 {[%emt 0:00:38]} Nd7 {[%emt 0:00:30]} 16. Ne4 {[%emt 0:02:06]} Nf6 {[%emt 0:07:20]} 17. Nxf6+ {[%emt 0:04:12]} exf6 {[%emt 0:00:14]} 18. f5 {[%emt 0:00:11]} Re8 {[%emt 0:01:22]} 19. e4 {[%emt 0:00:50]} g5 {[%emt 0:01:08]} 20. Bh5 {[%emt 0:08:52]} Qe7 {[%emt 0:01:31]} 21. Rfe1 {[%emt 0:02:00]} Ba8 {[%emt 0:02:16]} 22. Ra2 {[%emt 0:05:20]} b5 {[%emt 0:02:17]} 23. cxb5 {[%emt 0:00:14]} axb5 {[%emt 0:00:15]} 24. a5 {[%emt 0:00:07]} Bxd5 {[%emt 0:01:49]} 25. Bf3 {[%emt 0:01:31]} Ba8 {[%emt 0:05:56]} 26. Re2 {[%emt 0:05:36]} Bb7 {[%emt 0:04:28]} 27. a6 {[%emt 0:03:08]} Ra8 {[%emt 0:02:23]} 28. a7 {[%emt 0:00:27]} Bc6 {[%emt 0:01:29]} 29. Qd3 {[%emt 0:01:13]} Red8 {[%emt 0:01:57]} 30. b4 {[%emt 0:08:31]} Rxa7 {[%emt 0:01:14]} 31. Rxa7 {[%emt 0:00:21]} Qxa7 {[%emt 0:00:17]} 32. bxc5 {[%emt 0:00:05]} Qxc5+ {[%emt 0:00:31]} 33. Kh1 {[%emt 0:00:12]} Qc4 {[%emt 0:02:21]} 34. Qd1 {[%emt 0:04:57]} Bb7 {[%emt 0:02:40]} 35. Rc2 {[%emt 0:02:53]} Qa4 {[%emt 0:00:30]} 36. Qd2 {[%emt 0:01:38]} Bxe4 {[%emt 0:00:52]} 0-1